fUST/lending_fUST_20240817
["ID","MTS","AMOUNT","RATE_DAILY","PERIOD"]
[335101588,1723824708512,-500.0,0.005,120]
[335101589,1723824708521,-15000.0,0.005,60]
[335101590,1723824708531,-200.0,0.005,120]
[335101591,1723824708542,-2498.84679252,0.005,120]
[335101592,1723824708551,-1000.0,0.0054529,120]
[335101593,1723824708563,-2498.84679252,0.0055,120]
[335101594,1723824708573,-5000.0,0.0055,90]
[335101595,1723824708582,-115818.82392,0.00595968,120]
[335101596,1723824708591,-30000.0,0.00598987,120]
[335101597,1723824708601,-321.85087728,0.006,2]
[335101598,1723824708610,-208.0852809,0.006,120]
[335101599,1723824708620,-200.0,0.006,120]
[335101600,1723824708631,-2498.84679252,0.006,120]
[335101601,1723824708641,-500.0,0.0061,120]
[335101602,1723824708651,-1000.0,0.0064,120]
[335101603,1723824708660,-5000.0,0.0065,90]
[335101604,1723824708670,-2498.84679252,0.0065,120]
[335101605,1723824708680,-1000.0,0.0068,120]
[335101606,1723824708690,-57909.4119598,0.00695661,120]
[335101607,1723824708699,-1000.0,0.00699999,120]
[335101608,1723824708708,-500.0,0.007,120]
[335101609,1723824708717,-4517.11177017,0.007,120]
[335101610,1723824708727,-2498.84679252,0.007,120]
[335101611,1723824708736,-26951.08293737,0.0071,120]
[335101612,1723824708746,-1000.0,0.0071667,30]
[335101613,1723824708755,-813.02402007,0.00727,120]
[335101614,1723824708765,-200.0,0.0074747,120]
[335101615,1723824708775,-1000.0,0.00749999,120]
[335101616,1723824708784,-2498.84679252,0.0075,120]
[335101617,1723824708793,-1000.0,0.0075,120]
[335101622,1723824785329,738.28384045,7.911e-05,2]
[335101623,1723824789389,534.45169516,7.911e-05,2]
[335101624,1723824794009,494.96995604,7.911e-05,2]
[335101625,1723824795712,892.1234828,7.911e-05,2]
[335101626,1723824805147,667.42736439,7.911e-05,2]
[335101627,1723824850505,494.7731256,9.589e-05,2]
[335101629,1723824896179,2139.78321751,9.589e-05,2]
[335101632,1723825143672,-1612.97059392,0.00010544,2]
[335101633,1723825143698,-779.85217684,0.00010958,2]
[335101634,1723825143723,-17454.3478553,0.00011409,2]
[335101635,1723825143749,-300.0,0.00011711,2]
[335101636,1723825143774,-309.11885378,0.00011712,2]
[335101637,1723825143800,-272.38247463,0.00011712,2]
[335101638,1723825143826,-569.27511148,0.00011712,2]
[335101639,1723825143851,-166.32188302,0.00011712,2]
[335101640,1723825143877,-413.45265018,0.00011712,2]
[335101641,1723825143907,-180.69959783,0.00011712,2]
[335101642,1723825143932,-202.94579001,0.00011712,2]
[335101643,1723825143959,-420.0,0.00012882,2]
[335101644,1723825143986,-493.03932546,0.0001295,2]
[335101645,1723825144015,-15515.0444623,0.0001299,2]
[335101646,1723825150896,534.92019174,0.00012998,2]
[335101647,1723825158281,-162.81928945,0.00013,2]
[335101648,1723825158306,-83222.243759,0.00013,2]
[335101649,1723825172237,-281.09871545,0.00011623,2]
[335101650,1723825172265,-166.50993089,0.00013098,2]
[335101651,1723825172289,-422.17784127,0.00013333,2]
[335101652,1723825172313,-3547.94444315,0.00013596,2]
[335101653,1723825172338,-727.98389282,0.00013688,2]
[335101654,1723825172363,-292.98093876,0.00013697,2]
[335101655,1723825172394,-379.59398242,0.00013697,2]
[335101656,1723825172420,-154.83735589,0.00013698,2]
[335101657,1723825172446,-500.0,0.00013699,2]
[335101658,1723825172474,-355.0,0.0001417,2]
[335101659,1723825172499,-154.76012181,0.00014187,2]
[335101660,1723825172525,-159.872278,0.00014247,2]
[335101661,1723825172551,-301.4340064,0.00014519,2]
[335101662,1723825172577,-167.954299,0.00017369,2]
[335101663,1723825172602,-167.954299,0.00017459,2]
[335101664,1723825172626,-167.954299,0.0001755,2]
[335101665,1723825172651,-167.954299,0.0001764,2]
[335101666,1723825172676,-167.954299,0.00017731,2]
[335101667,1723825172703,-167.954299,0.00017821,2]
[335101668,1723825172728,-167.954299,0.00017912,2]
[335101669,1723825172752,-167.954299,0.00018002,2]
[335101670,1723825172779,-167.954299,0.00018093,2]
[335101671,1723825172803,-167.954299,0.00018183,2]
[335101672,1723825172829,-167.954299,0.00018274,2]
[335101673,1723825172854,-500.0,0.00019178,2]
[335101674,1723825172878,-500.0,0.00019178,2]
[335101675,1723825172902,-251.0,0.00019178,2]
[335101676,1723825172925,-4709.82482115,0.0002,2]
[335101677,1723825172951,-1260.16836963,0.0002,2]
[335101678,1723825172975,-10600.77690868,0.0002,2]
[335101679,1723825179865,618.86853579,0.00011623,2]
[335101680,1723825186310,779.85217684,0.00011623,2]
[335101681,1723825221452,126409.28812474,0.0002,2]
[335101682,1723825230282,-301.4340064,0.00024242,2]
[335101683,1723825230308,-1260.16836963,0.00024242,2]
[335101684,1723825230332,-309.52024362,0.00024242,2]
[335101685,1723825230357,-500.0,0.00025911,2]
[335101686,1723825230382,-500.0,0.0002633,2]
[335101687,1723825230411,-15515.0444623,0.00026474,3]
[335101688,1723825230437,-500.0,0.00027707,2]
[335101689,1723825230463,-500.0,0.00028598,2]
[335101690,1723825230488,-20486.251699,0.00028668,2]
[335101691,1723825230512,-500.0,0.00030067,7]
[335101692,1723825230537,-500.0,0.00030523,7]
[335101693,1723825230562,-500.0,0.00030874,7]
[335101694,1723825230589,-500.0,0.00031506,4]
[335101695,1723825230614,-500.0,0.00031506,4]
[335101696,1723825230640,-500.0,0.00031506,4]
[335101697,1723825230665,-500.0,0.00031506,4]
[335101698,1723825230691,-500.0,0.00031506,4]
[335101699,1723825230717,-184.34,0.00031506,4]
[335101700,1723825230742,-1000.0,0.000316,7]
[335101701,1723825230766,-207.4367972,0.00032438,2]
[335101703,1723825230791,-500.0,0.00033211,7]
[335101704,1723825230817,-5000.0,0.0003375,14]
[335101705,1723825230842,-500.0,0.00035015,7]
[335101706,1723825230867,-500.0,0.00035143,7]
[335101707,1723825230892,-500.0,0.00035195,7]
[335101708,1723825230918,-162.8626633,0.00035616,120]
[335101709,1723825230943,-500.0,0.0003572,7]
[335101710,1723825230968,-500.0,0.00037113,7]
[335101711,1723825230993,-500.0,0.00037942,7]
[335101712,1723825231018,-500.0,0.0003804,7]
[335101713,1723825231045,-207.4367972,0.000381,2]
[335101714,1723825231070,-207.4367972,0.000381,2]
[335101715,1723825231095,-207.4367972,0.000381,2]
[335101716,1723825231122,-153.0,0.000381,2]
[335101717,1723825231146,-153.0,0.000381,2]
[335101718,1723825231172,-153.0,0.000381,2]
[335101719,1723825231197,-153.0,0.000381,2]
[335101720,1723825231221,-153.0,0.000381,2]
[335101721,1723825231246,-153.0,0.000381,2]
[335101722,1723825231270,-153.0,0.000381,2]
[335101723,1723825231295,-153.0,0.000381,2]
[335101724,1723825231321,-153.0,0.000381,2]
[335101725,1723825231345,-153.0,0.000381,2]
[335101726,1723825231370,-258.427603,0.000381,2]
[335101727,1723825231398,-272.2843982,0.000381,2]
[335101728,1723825231423,-306.0,0.000381,2]
[335101729,1723825231447,-153.0,0.000381,2]
[335101730,1723825231474,-153.0,0.000381,2]
[335101731,1723825231500,-207.4367972,0.000381,2]
[335101732,1723825231524,-153.0,0.000381,2]
[335101733,1723825231548,-153.0,0.000381,2]
[335101734,1723825231579,-207.4367972,0.000381,2]
[335101735,1723825231604,-207.4367972,0.000381,2]
[335101736,1723825231628,-207.4367972,0.000381,2]
[335101737,1723825231653,-207.4367972,0.000381,2]
[335101738,1723825231677,-207.4367972,0.000381,2]
[335101739,1723825231701,-153.0,0.000381,2]
[335101740,1723825231725,-153.0,0.000381,2]
[335101741,1723825231750,-207.4367972,0.000381,2]
[335101742,1723825231774,-153.0,0.000381,2]
[335101743,1723825231798,-153.0,0.000381,2]
[335101744,1723825231826,-153.0,0.000381,2]
[335101745,1723825231853,-153.0,0.00038111,2]
[335101746,1723825231878,-153.0,0.00038111,2]
[335101747,1723825231903,-153.0,0.00038111,2]
[335101748,1723825231926,-153.0,0.00038111,2]
[335101749,1723825231951,-500.0,0.00038553,7]
[335101750,1723825231975,-500.0,0.00038759,7]
[335101751,1723825232000,-500.0,0.00039007,7]
[335101752,1723825335538,-1260.16836963,0.00039007,4]
[335101753,1723825335563,-169839.73452461,0.00039007,120]
[335101754,1723825335592,-500.0,0.00041095,120]
[335101755,1723825335620,-500.0,0.00041095,120]
[335101756,1723825335644,-340.97573053,0.00041095,120]
[335101757,1723825335669,-500.0,0.00041095,120]
[335101758,1723825335694,-500.0,0.00041095,120]
[335101759,1723825335719,-500.0,0.00041095,120]
[335101760,1723825335747,-500.0,0.00041095,120]
[335101761,1723825335775,-500.0,0.00041095,120]
[335101762,1723825335800,-500.0,0.00041095,120]
[335101763,1723825335829,-338.57282846,0.00041095,120]
[335101764,1723825335856,-500.0,0.00041095,120]
[335101765,1723825335883,-500.0,0.00041095,120]
[335101766,1723825335907,-551.48,0.00041095,120]
[335101767,1723825335935,-500.0,0.00041095,120]
[335101768,1723825335961,-597.79,0.00041095,120]
[335101769,1723825335985,-503.40618307,0.00041095,120]
[335101770,1723825336010,-500.0,0.00041095,120]
[335101771,1723825336034,-500.0,0.00041095,120]
[335101772,1723825336060,-500.0,0.00041095,120]
[335101773,1723825336086,-500.0,0.00041095,120]
[335101774,1723825336112,-500.0,0.00041095,120]
[335101775,1723825336140,-500.0,0.00041095,120]
[335101776,1723825336166,-500.0,0.00041095,120]
[335101777,1723825336191,-500.0,0.00041095,120]
[335101778,1723825336218,-1872.13,0.00041095,120]
[335101779,1723825336243,-500.0,0.00041095,120]
[335101780,1723825336267,-500.0,0.00041095,120]
[335101781,1723825336292,-500.0,0.00041095,120]
[335101782,1723825336319,-500.0,0.00041095,120]
[335101783,1723825336348,-457.96171615,0.00041095,120]
[335101784,1723825336376,-500.0,0.00041095,120]
[335101785,1723825336401,-500.0,0.00041095,120]
[335101786,1723825336431,-500.0,0.00041095,120]
[335101787,1723825336456,-500.0,0.00041095,120]
[335101788,1723825336483,-610.80933409,0.00041095,120]
[335101789,1723825336509,-500.0,0.00041095,120]
[335101790,1723825336533,-500.0,0.00041095,120]
[335101791,1723825336556,-500.0,0.00041095,120]
[335101792,1723825336580,-526.07,0.00041095,120]
[335101793,1723825336604,-500.0,0.00041095,120]
[335101794,1723825336629,-500.0,0.00041095,120]
[335101795,1723825336654,-500.0,0.00041095,120]
[335101796,1723825336679,-500.0,0.00041095,120]
[335101797,1723825336703,-500.0,0.00041095,120]
[335101798,1723825336727,-500.0,0.00041095,120]
[335101799,1723825336751,-500.0,0.00041369,120]
[335101800,1723825336774,-500.0,0.00041369,120]
[335101801,1723825336799,-500.0,0.00041369,120]
[335101802,1723825336822,-323.2,0.00041369,120]
[335101803,1723825336846,-500.0,0.00041369,120]
[335101804,1723825336873,-240.35637663,0.00041369,120]
[335101805,1723825336898,-180.67,0.00041369,120]
[335101806,1723825336922,-359.25,0.00041369,120]
[335101807,1723825336946,-1872.13,0.00041369,120]
[335101808,1723825336970,-500.0,0.00041369,120]
[335101809,1723825336997,-500.0,0.00041369,120]
[335101810,1723825337022,-500.0,0.00041643,120]
[335101811,1723825337047,-500.0,0.00041643,120]
[335101812,1723825337073,-500.0,0.00041643,120]
[335101813,1723825337099,-500.0,0.00041643,120]
[335101814,1723825337127,-1872.13,0.00041643,120]
[335101815,1723825337152,-500.0,0.00041643,120]
[335101816,1723825337189,-363.29583669,0.00041643,120]
[335101817,1723825337215,-500.0,0.00041657,30]
[335101818,1723825337239,-500.0,0.00041917,120]
[335101819,1723825337265,-505.60260265,0.00041917,120]
[335101820,1723825337290,-500.0,0.00041917,120]
[335101821,1723825337315,-500.0,0.00041917,120]
[335101822,1723825337341,-1872.13,0.00041917,120]
[335101823,1723825337367,-500.0,0.00041917,120]
[335101824,1723825337393,-500.0,0.00042191,120]
[335101825,1723825337418,-500.0,0.00042191,120]
[335101826,1723825337446,-400.3806607,0.00042191,120]
[335101827,1723825337472,-1872.13,0.00042191,120]
[335101828,1723825337498,-500.0,0.00042327,30]
[335101829,1723825337526,-500.0,0.00042465,120]
[335101830,1723825337552,-500.0,0.00042465,120]
[335101831,1723825337578,-1872.13,0.00042465,120]
[335101832,1723825337605,-500.0,0.00042739,120]
[335101833,1723825337633,-500.0,0.00042739,120]
[335101834,1723825337660,-1872.13,0.00042739,120]
[335101835,1723825337686,-262.317273,0.0004274,2]
[335101836,1723825337713,-500.0,0.00043013,120]
[335101837,1723825337740,-500.0,0.00043013,120]
[335101838,1723825337767,-1872.13,0.00043013,120]
[335101839,1723825337794,-500.0,0.00043287,120]
[335101840,1723825337823,-500.0,0.00043287,120]
[335101841,1723825337850,-1872.13,0.00043287,120]
[335101842,1723825337878,-500.0,0.00043544,30]
[335101843,1723825337907,-500.0,0.00043561,120]
[335101844,1723825338066,-500.0,0.00043561,120]
[335101845,1723825338093,-1872.13,0.00043561,120]
[335101846,1723825338123,-166.50993088,0.00043725,2]
[335101847,1723825338150,-500.0,0.00043789,30]
[335101848,1723825338179,-31030.0889245,0.00043825,5]
[335101849,1723825338206,-500.0,0.00043834,120]
[335101850,1723825338233,-991.28,0.00043834,120]
[335101851,1723825338261,-2797.29,0.00043834,60]
[335101852,1723825338287,-2797.29,0.00043834,60]
[335101853,1723825338314,-2797.29,0.00043834,60]
[335101854,1723825338339,-2797.29,0.00043834,60]
[335101855,1723825338364,-2797.29,0.00043834,60]
[335101856,1723825338393,-2797.29,0.00043834,60]
[335101857,1723825338418,-2797.29,0.00043834,60]
[335101858,1723825338451,-2797.29,0.00043834,60]
[335101859,1723825338477,-2797.29,0.00043834,60]
[335101860,1723825338502,-2797.29,0.00043834,60]
[335101861,1723825338532,-2797.29,0.00043834,60]
[335101862,1723825338560,-2797.29,0.00043834,60]
[335101863,1723825338586,-2797.29,0.00043834,60]
[335101864,1723825338611,-2797.29,0.00043834,60]
[335101865,1723825338638,-2797.29,0.00043834,60]
[335101866,1723825338664,-2797.29,0.00043834,60]
[335101867,1723825338691,-2797.29,0.00043834,60]
[335101868,1723825338718,-2797.29,0.00043834,60]
[335101869,1723825338745,-2797.29,0.00043834,60]
[335101870,1723825338774,-2797.29,0.00043834,60]
[335101871,1723825338801,-2797.29,0.00043834,60]
[335101872,1723825338827,-2797.29,0.00043834,60]
[335101873,1723825338853,-2797.29,0.00043834,60]
[335101874,1723825338882,-2797.35549379,0.00043834,60]
[335101875,1723825338911,-58432.60321675,0.00043835,61]
[335101876,1723825338938,-500.0,0.00043835,120]
[335101877,1723825338964,-500.0,0.00043835,120]
[335101878,1723825338992,-500.0,0.00043835,120]
[335101879,1723825339019,-534.06,0.00043835,120]
[335101880,1723825339044,-500.0,0.00043835,120]
[335101881,1723825339070,-416.1705001,0.00043835,120]
[335101882,1723825339095,-500.0,0.00043835,120]
[335101883,1723825339122,-500.0,0.00043835,120]
[335101884,1723825339147,-500.0,0.00043835,120]
[335101885,1723825339173,-500.0,0.00043835,120]
[335101886,1723825339197,-500.0,0.00043835,120]
[335101887,1723825339222,-500.0,0.00043835,120]
[335101888,1723825339246,-500.0,0.00043835,120]
[335101889,1723825339272,-630.02,0.00043835,120]
[335101890,1723825339297,-500.0,0.00043835,120]
[335101891,1723825339322,-511.4259117,0.00043835,120]
[335101892,1723825339347,-500.0,0.00043835,120]
[335101893,1723825339372,-500.0,0.00043835,120]
[335101894,1723825339397,-500.0,0.00043835,120]
[335101895,1723825339423,-500.0,0.00043835,120]
[335101896,1723825339451,-499.99855932,0.00043835,120]
[335101897,1723825339477,-564.48,0.00043835,120]
[335101898,1723825339502,-524.22,0.00043835,120]
[335101899,1723825339529,-549.31,0.00043835,120]
[335101900,1723825339554,-500.0,0.00043835,120]
[335101901,1723825339579,-500.0,0.00043835,120]
[335101902,1723825339603,-500.0,0.00043835,120]
[335101903,1723825339629,-500.0,0.00043835,120]
[335101904,1723825339653,-500.0,0.00043835,120]
[335101905,1723825339678,-433.57261458,0.00043835,120]
[335101906,1723825339703,-500.0,0.00043835,120]
[335101907,1723825339732,-500.0,0.00043835,120]
[335101908,1723825339756,-500.0,0.00043835,120]
[335101909,1723825339781,-500.0,0.00043835,120]
[335101910,1723825339806,-500.0,0.00043835,120]
[335101911,1723825339831,-287.74704676,0.00043835,120]
[335101912,1723825339856,-500.0,0.00043835,120]
[335101913,1723825339880,-500.0,0.00043835,120]
[335101914,1723825339905,-500.0,0.00043835,120]
[335101915,1723825339928,-500.0,0.00043835,120]
[335101916,1723825339954,-500.0,0.00043835,120]
[335101917,1723825339995,-500.0,0.00043835,120]
[335101918,1723825340020,-500.0,0.00043835,120]
[335101919,1723825340045,-500.0,0.00043835,120]
[335101920,1723825340070,-500.0,0.00043835,120]
[335101921,1723825340096,-500.0,0.00043835,7]
[335101922,1723825340125,-589.13,0.00043835,120]
[335101923,1723825340153,-500.0,0.00043835,120]
[335101924,1723825340179,-500.0,0.00043835,120]
[335101925,1723825340206,-500.0,0.00043835,120]
[335101926,1723825340233,-500.0,0.00043835,120]
[335101927,1723825340262,-500.0,0.00043835,120]
[335101928,1723825340287,-500.0,0.00043835,120]
[335101929,1723825340312,-500.0,0.00043835,120]
[335101930,1723825340337,-500.0,0.00043835,120]
[335101931,1723825340363,-500.0,0.00043835,120]
[335101932,1723825340391,-500.0,0.00043835,120]
[335101933,1723825340416,-500.0,0.00043835,120]
[335101934,1723825340444,-604.85606084,0.00043835,120]
[335101935,1723825340470,-500.0,0.00043835,120]
[335101936,1723825340496,-500.0,0.00043835,120]
[335101937,1723825340526,-500.0,0.00043835,120]
[335101938,1723825340551,-500.0,0.00043835,120]
[335101939,1723825340578,-500.0,0.00043835,120]
[335101940,1723825340604,-500.0,0.00043835,120]
[335101941,1723825340633,-500.0,0.00043835,120]
[335101942,1723825340659,-500.0,0.00043835,120]
[335101943,1723825340686,-500.0,0.00043835,120]
[335101944,1723825340711,-500.0,0.00043835,120]
[335101945,1723825340737,-500.0,0.00043835,120]
[335101946,1723825340762,-169.0785206,0.00043835,120]
[335101947,1723825340788,-500.0,0.00043835,120]
[335101948,1723825340813,-500.0,0.00043835,120]
[335101949,1723825340840,-500.0,0.00043835,120]
[335101950,1723825340865,-500.0,0.00043835,120]
[335101951,1723825340894,-500.0,0.00043835,120]
[335101952,1723825340920,-239.17795664,0.00043835,120]
[335101953,1723825340946,-500.0,0.00043835,120]
[335101954,1723825340971,-500.0,0.00043835,120]
[335101955,1723825340997,-500.0,0.00043835,120]
[335101956,1723825341022,-500.0,0.00043835,120]
[335101957,1723825341047,-162.40867233,0.00043835,120]
[335101958,1723825341073,-500.0,0.00043835,120]
[335101959,1723825341099,-500.0,0.00043835,120]
[335101960,1723825341130,-500.0,0.00043835,120]
[335101961,1723825341158,-600.6,0.00043835,120]
[335101962,1723825341184,-500.0,0.00043835,120]
[335101963,1723825341209,-500.0,0.00043835,120]
[335101964,1723825341236,-500.0,0.00043835,120]
[335101965,1723825341264,-500.0,0.00043835,120]
[335101966,1723825341291,-500.0,0.00043835,120]
[335101967,1723825341318,-500.0,0.00043835,20]
[335101968,1723825341344,-500.0,0.00043835,120]
[335101969,1723825341379,-500.0,0.00043835,120]
[335101970,1723825341407,-500.0,0.00043835,120]
[335101971,1723825341437,-500.0,0.00043835,120]
[335101972,1723825341466,-500.0,0.00043835,120]
[335101973,1723825341496,-500.0,0.00043835,120]
[335101974,1723825341526,-173.53144085,0.00043835,120]
[335101975,1723825341556,-500.0,0.00043835,120]
[335101976,1723825341582,-1872.13,0.00043835,120]
[335101977,1723825341608,-200.0,0.00043873,10]
[335101978,1723825341638,-467.22340978,0.00044108,120]
[335101979,1723825341665,-991.28,0.00044108,120]
[335101980,1723825341691,-178.31,0.00044109,120]
[335101981,1723825341719,-500.0,0.00044109,120]
[335101982,1723825341748,-251.11,0.00044109,120]
[335101983,1723825341776,-500.0,0.00044109,120]
[335101984,1723825341805,-241.81,0.00044109,120]
[335101985,1723825341832,-161.06,0.00044109,120]
[335101986,1723825341860,-500.0,0.00044109,120]
[335101987,1723825341888,-500.0,0.00044109,120]
[335101988,1723825341914,-222.63,0.00044109,120]
[335101989,1723825341943,-500.0,0.00044109,120]
[335101990,1723825341970,-1872.13,0.00044109,120]
[335101991,1723825341997,-500.0,0.00044354,30]
[335101992,1723825342022,-991.28,0.00044382,120]
[335101993,1723825342051,-258.94305516,0.00044383,120]
[335101994,1723825342077,-500.0,0.00044383,120]
[335101995,1723825342103,-500.0,0.00044383,120]
[335101996,1723825342132,-500.0,0.00044383,120]
[335101997,1723825342159,-500.0,0.00044383,120]
[335101998,1723825342187,-1872.13,0.00044383,120]
[335101999,1723825342213,-153.0,0.00044384,120]
[335102000,1723825342240,-153.0,0.00044384,120]
[335102001,1723825342266,-153.0,0.00044384,120]
[335102002,1723825342293,-991.28,0.00044656,120]
[335102003,1723825342321,-500.0,0.00044657,120]
[335102004,1723825342348,-500.0,0.00044657,120]
[335102005,1723825342376,-245.85925926,0.00044657,120]
[335102006,1723825342404,-500.0,0.00044657,120]
[335102007,1723825342644,-1872.13,0.00044657,120]
[335102008,1723825342673,-991.28,0.0004493,120]
[335102009,1723825342701,-500.0,0.00044931,120]
[335102010,1723825342729,-500.0,0.00044931,120]
[335102011,1723825342757,-500.0,0.00044931,120]
[335102012,1723825342784,-1872.13,0.00044931,120]
[335102013,1723825342811,-991.28,0.00045204,120]
[335102014,1723825342839,-500.0,0.00045205,120]
[335102015,1723825342866,-500.0,0.00045205,120]
[335102016,1723825342897,-500.0,0.00045205,120]
[335102017,1723825342925,-1872.13,0.00045205,120]
[335102018,1723825342952,-400.0,0.00045242,10]
[335102019,1723825342980,-991.28,0.00045478,120]
[335102020,1723825343007,-500.0,0.00045479,120]
[335102021,1723825343036,-500.0,0.00045479,120]
[335102022,1723825343065,-500.0,0.00045479,120]
[335102023,1723825343093,-1872.13,0.00045479,120]
[335102024,1723825343125,-500.0,0.00045746,30]
[335102025,1723825343157,-991.28,0.00045752,120]
[335102026,1723825343189,-500.0,0.00045753,120]
[335102027,1723825343217,-500.0,0.00045753,120]
[335102028,1723825343245,-601.10027276,0.00045753,120]
[335102029,1723825343273,-1872.13,0.00045753,120]
[335102030,1723825343300,-991.28,0.00046026,120]
[335102031,1723825343327,-500.0,0.00046027,120]
[335102032,1723825343355,-500.0,0.00046027,120]
[335102033,1723825343384,-1872.13,0.00046027,120]
[335102034,1723825343412,-15515.0444623,0.00046291,5]
[335102035,1723825343441,-991.28,0.000463,120]
[335102036,1723825343474,-159.58,0.000463,39]
[335102037,1723825343501,-500.0,0.00046301,120]
[335102038,1723825343528,-500.0,0.00046301,120]
[335102039,1723825343554,-1872.13,0.00046301,120]
[335102040,1723825343581,-500.0,0.00046365,30]
[335102041,1723825343607,-500.0,0.00046522,30]
[335102042,1723825343633,-366.87325489,0.00046574,120]
[335102062,1723825410857,-600.0,0.0002619,2]
[335102063,1723825410884,-500.0,0.00034653,7]
[335102064,1723825410910,-500.0,0.00035275,7]
[335102065,1723825410937,-500.0,0.00037065,7]
[335102066,1723825410964,-23272.5666934,0.00038997,5]
[335102067,1723825410989,-500.0,0.0003965,7]
[335102068,1723825411015,-468.05516779,0.00040995,28]
[335102069,1723825411040,-500.0,0.00041153,30]
[335102070,1723825411065,-500.0,0.00041784,30]
[335102071,1723825411090,-500.0,0.00043637,30]
[335102072,1723825411121,-500.0,0.00043846,30]
[335102073,1723825411147,-500.0,0.0004385,30]
[335102074,1723825411176,-29216.30160837,0.00045478,61]
[335102075,1723825411203,-194102.55374241,0.00045478,120]
[335102076,1723825411230,-624.40674511,0.00046574,120]
[335102077,1723825411256,-500.0,0.00046575,120]
[335102078,1723825411282,-500.0,0.00046575,120]
[335102079,1723825411309,-1872.13,0.00046575,120]
[335102080,1723825411346,-991.28,0.00046848,120]
[335102081,1723825411378,-500.0,0.00046849,120]
[335102082,1723825411410,-500.0,0.00046849,120]
[335102083,1723825411441,-1872.13,0.00046849,120]
[335102084,1723825411473,-991.28,0.00047122,120]
[335102085,1723825411502,-500.0,0.00047123,120]
[335102086,1723825411532,-500.0,0.00047123,120]
[335102087,1723825411562,-1872.13,0.00047123,120]
[335102088,1723825411591,-200.0,0.00047246,10]
[335102089,1723825411619,-991.28,0.00047396,120]
[335102090,1723825411647,-500.0,0.00047397,120]
[335102091,1723825411680,-500.0,0.00047397,120]
[335102092,1723825411708,-1872.2502753,0.00047397,120]
[335102093,1723825411738,-991.28,0.0004767,120]
[335102094,1723825411768,-500.0,0.00047671,120]
[335102095,1723825411796,-500.0,0.00047671,120]
[335102096,1723825411825,-262.317273,0.000477,2]
[335102097,1723825411856,-11636.2833467,0.00047935,6]
[335102098,1723825411884,-991.28,0.00047944,120]
[335102099,1723825411914,-500.0,0.00047945,120]
[335102100,1723825411944,-500.0,0.00047945,120]
[335102101,1723825411973,-991.28,0.00048218,120]
[335102102,1723825412002,-500.0,0.00048219,120]
[335102103,1723825412031,-500.0,0.00048219,120]
[335102104,1723825412061,-991.28,0.00048492,120]
[335102105,1723825412090,-368.53184366,0.00048493,120]
[335102106,1723825412122,-312.5,0.00048493,120]
[335102107,1723825412149,-991.28,0.00048766,120]
[335102108,1723825412178,-991.28,0.0004904,120]
[335102109,1723825412206,-991.28,0.00049314,120]
[335102110,1723825412235,-991.28,0.00049588,120]
[335102111,1723825412262,-991.28,0.00049862,120]
[335102112,1723825412288,-5430.96541402,0.0005,60]
[335102113,1723825412317,-154.76012181,0.0005,4]
[335102114,1723825412356,172.92893577,0.00014245,2]